fUSD/lending_fUSD_20250213
["ID","MTS","AMOUNT","RATE_DAILY","PERIOD"]
[352985801,1739475066435,-9134.028274,0.0001378,2]
[352985802,1739475066445,-958.76,0.0001378,2]
[352985803,1739475066455,-9134.028274,0.0001378,2]
[352985804,1739475066464,-500.0,0.0001378,2]
[352985805,1739475066474,-9134.028274,0.0001378,2]
[352985806,1739475066487,-500.0,0.0001378,2]
[352985807,1739475066498,-500.0,0.0001378,2]
[352985808,1739475066508,-9134.028274,0.0001378,2]
[352985809,1739475066518,-500.0,0.0001378,2]
[352985810,1739475066528,-3172.13,0.0001378,2]
[352985811,1739475066538,-500.0,0.0001378,2]
[352985812,1739475066548,-809.65,0.0001378,2]
[352985813,1739475066562,-4803.95,0.0001378,2]
[352985814,1739475066571,-6137.61,0.0001378,2]
[352985815,1739475066580,-4164.01,0.0001378,2]
[352985816,1739475066591,-4681.56,0.0001378,2]
[352985817,1739475066600,-1114.6,0.0001378,2]
[352985818,1739475066610,-520.86637,0.0001378,2]
[352985819,1739475066621,-1818.75,0.0001378,2]
[352985820,1739475066631,-1915.71,0.0001378,2]
[352985821,1739475066641,-5450.9,0.0001378,2]
[352985822,1739475066652,-366.513499,0.0001378,2]
[352985823,1739475066662,-843.06,0.0001378,2]
[352985824,1739475066672,-500.0,0.0001378,2]
[352985825,1739475066683,-501.94083038,0.0001378,2]
[352985826,1739475066693,-585.01,0.0001378,2]
[352985827,1739475066703,-507.39,0.0001378,2]
[352985828,1739475066714,-3804.92,0.0001378,2]
[352985829,1739475066724,-502.46614023,0.0001378,2]
[352985830,1739475066734,-2750.22,0.0001378,2]
[352985831,1739475066744,-7315.22,0.0001378,2]
[352985832,1739475066754,-868.46,0.0001378,2]
[352985833,1739475066763,-1215.14,0.0001378,2]
[352985834,1739475066773,-1615.48,0.0001378,2]
[352985835,1739475066783,-4215.54,0.0001378,2]
[352985836,1739475066793,-2402.62,0.0001378,2]
[352985837,1739475066803,-6028.5,0.0001378,2]
[352985838,1739475066813,-500.0,0.0001378,2]
[352985839,1739475066822,-913.88,0.0001378,2]
[352985840,1739475066832,-6328.65,0.0001378,2]
[352985841,1739475066841,-204.455092,0.0001378,2]
[352985842,1739475066851,-204.455092,0.0001378,2]
[352985843,1739475066860,-533.46,0.0001378,2]
[352985844,1739475066871,-204.455092,0.0001378,2]
[352985845,1739475066881,-204.455092,0.0001378,2]
[352985846,1739475066891,-2451.5,0.0001378,2]
[352985847,1739475066900,-204.455092,0.0001378,2]
[352985848,1739475066910,-1688.23,0.0001378,2]
[352985849,1739475066921,-519.51692336,0.0001378,2]
[352985850,1739475066931,-500.0,0.0001378,2]
[352985851,1739475066940,-851.74,0.0001378,2]
[352985852,1739475066950,-831.91,0.0001378,2]
[352985853,1739475066959,-204.455092,0.0001378,2]
[352985854,1739475066969,-204.455092,0.0001378,2]
[352985855,1739475066979,-204.455092,0.0001378,2]
[352985856,1739475066988,-204.455092,0.0001378,2]
[352985857,1739475066997,-204.455092,0.0001378,2]
[352985858,1739475067007,-4656.88,0.0001378,2]
[352985859,1739475067017,-715.55,0.0001378,2]
[352985860,1739475067026,-720.55698,0.0001378,2]
[352985861,1739475067036,-500.0,0.0001378,2]
[352985862,1739475067045,-500.0,0.0001378,2]
[352985863,1739475067060,-500.0,0.0001378,2]
[352985864,1739475067070,-500.0,0.0001378,2]
[352985865,1739475067081,-1950.56,0.0001378,2]
[352985866,1739475067092,-4132.85,0.0001378,2]
[352985867,1739475067102,-1145.89,0.0001378,2]
[352985868,1739475067112,-2053.83,0.0001378,2]
[352985869,1739475067122,-4586.99,0.0001378,2]
[352985870,1739475067133,-1899.77,0.0001378,2]
[352985871,1739475067144,-743.43,0.0001378,2]
[352985872,1739475067154,-937.36887726,0.0001378,2]
[352985873,1739475067164,-500.0,0.0001378,2]
[352985874,1739475067176,-3472.0,0.0001378,2]
[352985875,1739475067187,-284.36493736,0.0001378,2]
[352985876,1739475067197,-1797.1567807,0.00013781,2]
[352985877,1739475067208,-21270.84024426,0.0001379,2]
[352985878,1739475067218,-166.21,0.00013791,2]
[352985879,1739475067228,-500.0,0.000138,5]
[352985880,1739475067238,-500.0,0.00013808,2]
[352985881,1739475067248,-3472.0,0.00013808,2]
[352985882,1739475067258,-21270.84024426,0.00013818,2]
[352985883,1739475067268,-151.0,0.00013818,2]
[352985884,1739475067279,-151.0,0.00013818,2]
[352985885,1739475067289,-500.0,0.00013835,2]
[352985886,1739475067298,-3472.0,0.00013835,2]
[352985887,1739475067308,-1797.1567807,0.00013836,2]
[352985888,1739475067320,-1786.0,0.00013844,2]
[352985889,1739475067330,-783.0,0.00013844,2]
[352985890,1739475067340,-1265.0,0.00013844,2]
[352985891,1739475067349,-908.0,0.00013844,2]
[352985892,1739475067359,-2956.0,0.00013844,2]
[352985893,1739475067369,-539.0,0.00013844,2]
[352985894,1739475067378,-4020.0,0.00013844,2]
[352985895,1739475067388,-1109.0,0.00013844,2]
[352985896,1739475067398,-150.0,0.00013844,2]
[352985897,1739475067408,-640.0,0.00013844,2]
[352985898,1739475067418,-2174.968,0.00013844,2]
[352985899,1739475067427,-1273.0,0.00013844,2]
[352985900,1739475067436,-3915.0,0.00013844,2]
[352985901,1739475067445,-164.489525,0.00013845,2]
[352985902,1739475067455,-267.053296,0.00013845,2]
[352985903,1739475067465,-267.053296,0.00013845,2]
[352985904,1739475067478,-360.90886,0.00013845,2]
[352985905,1739475067488,-360.90886,0.00013845,2]
[352985906,1739475067498,-789.536407,0.00013845,2]
[352985907,1739475067507,-789.536407,0.00013845,2]
[352985908,1739475067519,-190.054601,0.00013845,2]
[352985909,1739475067529,-190.054601,0.00013845,2]
[352985910,1739475067540,-750.073748,0.00013845,2]
[352985911,1739475067551,-750.073748,0.00013845,2]
[352985912,1739475067565,-21270.84024426,0.00013845,2]
[352985913,1739475067576,-361.84698283,0.00013849,2]
[352985914,1739475067587,-329.90947682,0.00013849,2]
[352985915,1739475067597,-304.78526613,0.00013852,2]
[352985916,1739475067607,-500.0,0.00013861,2]
[352985917,1739475067617,-171.270392,0.00013862,2]
[352985918,1739475067628,-171.270392,0.00013862,2]
[352985919,1739475067638,-500.0,0.00013862,2]
[352985920,1739475067649,-500.0,0.00013862,2]
[352985921,1739475067659,-500.0,0.00013862,2]
[352985922,1739475067669,-500.0,0.00013862,2]
[352985923,1739475067679,-1244.854476,0.00013862,2]
[352985924,1739475067689,-1244.854476,0.00013862,2]
[352985925,1739475067699,-178.000446,0.00013862,2]
[352985926,1739475067709,-178.000446,0.00013862,2]
[352985927,1739475067719,-2577.652306,0.00013862,2]
[352985928,1739475067730,-2577.652306,0.00013862,2]
[352985929,1739475067740,-3475.390041,0.00013862,2]
[352985930,1739475067750,-3475.390041,0.00013862,2]
[352985931,1739475067760,-277.912437,0.00013862,2]
[352985932,1739475067771,-277.912437,0.00013862,2]
[352985933,1739475067781,-397.471021,0.00013862,2]
[352985934,1739475067791,-397.471021,0.00013862,2]
[352985935,1739475067801,-1161.477646,0.00013862,2]
[352985936,1739475067814,-707.54,0.00013862,2]
[352985937,1739475067823,-707.54,0.00013862,2]
[352985938,1739475067834,-707.54,0.00013862,2]
[352985939,1739475067844,-707.54,0.00013862,2]
[352985940,1739475067855,-707.54,0.00013862,2]
[352985941,1739475067865,-707.54,0.00013862,2]
[352985942,1739475067876,-707.54,0.00013862,2]
[352985943,1739475067887,-707.54,0.00013862,2]
[352985944,1739475067898,-707.54,0.00013862,2]
[352985945,1739475067908,-707.54,0.00013862,2]
[352985946,1739475067918,-707.54,0.00013862,2]
[352985947,1739475067929,-707.71747695,0.00013862,2]
[352985948,1739475067939,-1161.477646,0.00013862,2]
[352985949,1739475067949,-151.0,0.00013862,2]
[352985950,1739475067959,-438.711195,0.00013862,2]
[352985951,1739475067969,-438.711195,0.00013862,2]
[352985952,1739475067980,-226.640622,0.00013862,2]
[352985953,1739475067991,-9134.028274,0.00013862,2]
[352985954,1739475068001,-9134.028274,0.00013862,2]
[352985955,1739475068011,-372.94598075,0.00013862,2]
[352985956,1739475068021,-204.455092,0.00013862,2]
[352985957,1739475068031,-204.455092,0.00013862,2]
[352985958,1739475068041,-655.76150815,0.00013862,2]
[352985959,1739475068051,-3472.0,0.00013862,2]
[352985960,1739475068062,-178.3149851,0.00013863,3]
[352985961,1739475068073,-762406.11043108,0.00013863,3]
[352985962,1739475068083,-799.27,0.00013863,2]
[352985963,1739475068093,-500.0,0.00013863,2]
[352985964,1739475068103,-500.0,0.00013863,2]
[352985965,1739475068112,-726.6,0.00013863,2]
[352985966,1739475068122,-1049.15,0.00013863,2]
[352985967,1739475068131,-600.32332095,0.00013863,2]
[352985968,1739475068141,-654.08,0.00013863,2]
[352985969,1739475068151,-500.0,0.00013863,2]
[352985970,1739475068160,-439.80067709,0.00013863,2]
[352985971,1739475068170,-500.0,0.00013863,2]
[352985972,1739475068179,-500.0,0.00013863,2]
[352985973,1739475068189,-228.500493,0.00013863,2]
[352985974,1739475068199,-228.500493,0.00013863,2]
[352985975,1739475068209,-228.500495,0.00013863,2]
[352985976,1739475068361,-750.5,0.00013863,2]
[352985977,1739475068374,-500.0,0.00013863,2]
[352985978,1739475068384,-500.0,0.00013863,2]
[352985979,1739475068394,-500.0,0.00013863,2]
[352985980,1739475068403,-500.0,0.00013863,2]
[352985981,1739475068413,-500.0,0.00013863,2]
[352985982,1739475068423,-959.51,0.00013863,2]
[352985983,1739475068433,-500.0,0.00013863,2]
[352985984,1739475068443,-533.87475642,0.00013863,2]
[352985985,1739475068452,-500.0,0.00013863,2]
[352985986,1739475068462,-500.0,0.00013863,2]
[352985987,1739475068472,-500.0,0.00013863,2]
[352985988,1739475068485,-1051.8,0.00013863,2]
[352985989,1739475068494,-182.66492031,0.00013863,2]
[352985990,1739475068504,-1058.29,0.00013863,2]
[352985991,1739475068513,-171.270392,0.00013863,2]
[352985992,1739475068523,-163.626729,0.00013863,2]
[352985993,1739475068534,-163.626729,0.00013863,2]
[352985994,1739475068544,-171.270392,0.00013863,2]
[352985995,1739475068554,-746.91,0.00013863,2]
[352985996,1739475068567,-163.626729,0.00013863,2]
[352985997,1739475068578,-171.270392,0.00013863,2]
[352985998,1739475068587,-171.270388,0.00013863,2]
[352985999,1739475068596,-163.626729,0.00013863,2]
[352986000,1739475068606,-163.626729,0.00013863,2]
[352986001,1739475068615,-163.626737,0.00013863,2]
[352986002,1739475068625,-500.0,0.00013863,2]
[352986003,1739475068634,-1109.64,0.00013863,2]
[352986004,1739475068643,-500.0,0.00013863,2]
[352986005,1739475068654,-500.0,0.00013863,2]
[352986006,1739475068664,-1470.27,0.00013863,2]
[352986007,1739475068674,-500.0,0.00013863,2]
[352986008,1739475068684,-602.47,0.00013863,2]
[352986009,1739475068694,-500.0,0.00013863,2]
[352986010,1739475068705,-500.0,0.00013863,2]
[352986011,1739475068714,-513.17245221,0.00013863,2]
[352986012,1739475068724,-1132.4,0.00013863,2]
[352986013,1739475068735,-342.33165765,0.00013863,2]
[352986014,1739475068744,-500.0,0.00013863,2]
[352986015,1739475068755,-1122.76,0.00013863,2]
[352986016,1739475068766,-500.0,0.00013863,2]
[352986017,1739475068777,-590.71,0.00013863,2]
[352986018,1739475068787,-500.0,0.00013863,2]
[352986019,1739475068798,-664.27,0.00013863,2]
[352986020,1739475068809,-500.0,0.00013863,2]
[352986021,1739475068823,-507.15402754,0.00013863,2]
[352986022,1739475068835,-551.31960809,0.00013863,2]
[352986023,1739475068846,-500.0,0.00013863,2]
[352986024,1739475068856,-1851.87,0.00013863,2]
[352986025,1739475068867,-500.0,0.00013863,2]
[352986026,1739475068879,-500.0,0.00013863,2]
[352986027,1739475068890,-500.0,0.00013863,2]
[352986028,1739475068901,-500.0,0.00013863,2]
[352986029,1739475068911,-500.0,0.00013863,2]
[352986030,1739475068920,-547.17,0.00013863,2]
[352986031,1739475068930,-942.14,0.00013863,2]
[352986032,1739475068940,-500.0,0.00013863,2]
[352986033,1739475068950,-500.0,0.00013863,2]
[352986034,1739475068959,-500.0,0.00013863,2]
[352986035,1739475068968,-500.0,0.00013863,2]
[352986036,1739475068978,-1024.37,0.00013863,2]
[352986037,1739475068987,-500.0,0.00013863,2]
[352986038,1739475068997,-374.40959478,0.00013863,2]
[352986039,1739475069006,-500.0,0.00013863,2]
[352986040,1739475069016,-267.053296,0.00013863,2]
[352986041,1739475069025,-500.0,0.00013863,2]
[352986042,1739475069034,-267.053296,0.00013863,2]
[352986043,1739475069044,-1082.48,0.00013863,2]
[352986044,1739475069054,-915.31,0.00013863,2]
[352986045,1739475069066,-779.07,0.00013863,2]
[352986046,1739475069076,-267.053296,0.00013863,2]
[352986047,1739475069087,-267.0533,0.00013863,2]
[352986048,1739475069098,-1156.23,0.00013863,2]
[352986049,1739475069107,-500.0,0.00013863,2]
[352986050,1739475069117,-500.0,0.00013863,2]
[352986051,1739475069126,-500.0,0.00013863,2]
[352986052,1739475069136,-1175.21,0.00013863,2]
[352986053,1739475069145,-794.57,0.00013863,2]
[352986054,1739475069159,-500.0,0.00013863,2]
[352986055,1739475069168,-1572.9,0.00013863,2]
[352986056,1739475069178,-500.0,0.00013863,2]
[352986057,1739475069187,-500.0,0.00013863,2]
[352986058,1739475069196,-500.0,0.00013863,2]
[352986059,1739475069206,-500.0,0.00013863,2]
[352986060,1739475069215,-1592.64,0.00013863,2]
[352986061,1739475069226,-500.0,0.00013863,2]
[352986062,1739475069235,-703.39,0.00013863,2]
[352986063,1739475069245,-438.59582007,0.00013863,2]
[352986064,1739475069255,-500.0,0.00013863,2]
[352986065,1739475069264,-958.04,0.00013863,2]
[352986066,1739475069274,-500.0,0.00013863,2]
[352986067,1739475069283,-500.0,0.00013863,2]
[352986068,1739475069293,-610.65,0.00013863,2]
[352986069,1739475069303,-739.92,0.00013863,2]
[352986070,1739475069314,-575.1,0.00013863,2]
[352986071,1739475069323,-500.0,0.00013863,2]
[352986072,1739475069333,-500.0,0.00013863,2]
[352986073,1739475069343,-619.9,0.00013863,2]
[352986074,1739475069352,-471.81866701,0.00013863,2]
[352986075,1739475069362,-500.0,0.00013863,2]
[352986076,1739475069371,-588.16,0.00013863,2]
[352986077,1739475069381,-500.0,0.00013863,2]
[352986078,1739475069390,-830.4,0.00013863,2]
[352986079,1739475069401,-546.31,0.00013863,2]
[352986080,1739475069411,-712.02,0.00013863,2]
[352986081,1739475069422,-500.0,0.00013863,2]
[352986082,1739475069433,-724.2,0.00013863,2]
[352986083,1739475069443,-952.21,0.00013863,2]
[352986084,1739475069452,-500.0,0.00013863,2]
[352986085,1739475069462,-775.03,0.00013863,2]
[352986086,1739475069473,-500.0,0.00013863,2]
[352986087,1739475069485,-500.0,0.00013863,2]
[352986088,1739475069495,-762.98,0.00013863,2]
[352986089,1739475069505,-500.0,0.00013863,2]
[352986090,1739475069515,-573.88,0.00013863,2]
[352986091,1739475069526,-624.29,0.00013863,2]
[352986092,1739475069535,-2514.14,0.00013863,2]
[352986093,1739475069545,-500.0,0.00013863,2]
[352986094,1739475069554,-500.0,0.00013863,2]
[352986095,1739475069567,-200.82135699,0.00013863,2]
[352986096,1739475069576,-745.85,0.00013863,2]
[352986097,1739475069586,-500.0,0.00013863,2]
[352986098,1739475069596,-1770.9,0.00013863,2]
[352986099,1739475069606,-500.0,0.00013863,2]
[352986100,1739475069615,-500.0,0.00013863,2]
[352986101,1739475069624,-976.85,0.00013863,2]
[352986102,1739475069634,-500.0,0.00013863,2]
[352986103,1739475069644,-500.0,0.00013863,2]
[352986104,1739475069654,-500.0,0.00013863,2]
[352986105,1739475069664,-700.26,0.00013863,2]
[352986106,1739475069674,-1919.22,0.00013863,2]
[352986107,1739475069684,-543.29464168,0.00013863,2]
[352986108,1739475069694,-901.17,0.00013863,2]
[352986109,1739475069704,-2037.16,0.00013863,2]
[352986110,1739475069714,-687.13,0.00013863,2]
[352986111,1739475069724,-500.0,0.00013863,2]
[352986112,1739475069734,-1145.15,0.00013863,2]
[352986113,1739475069747,-581.75,0.00013863,2]
[352986114,1739475069757,-1572.74,0.00013863,2]
[352986115,1739475069767,-500.0,0.00013863,2]
[352986116,1739475069778,-725.91,0.00013863,2]
[352986117,1739475069788,-877.92,0.00013863,2]
[352986118,1739475069798,-500.0,0.00013863,2]
[352986119,1739475069808,-500.0,0.00013863,2]
[352986120,1739475069821,-500.0,0.00013863,2]
[352986121,1739475069830,-719.35,0.00013863,2]
[352986122,1739475069840,-3446.7,0.00013863,2]
[352986123,1739475069849,-639.1,0.00013863,2]
[352986124,1739475069859,-813.77,0.00013863,2]
[352986125,1739475069868,-2137.44,0.00013863,2]
[352986126,1739475069880,-500.0,0.00013863,2]
[352986127,1739475069891,-500.0,0.00013863,2]
[352986128,1739475069900,-500.0,0.00013863,2]
[352986129,1739475069910,-500.0,0.00013863,2]
[352986130,1739475069919,-534.03,0.00013863,2]
[352986131,1739475069929,-3190.37,0.00013863,2]
[352986132,1739475069939,-516.35,0.00013863,2]
[352986133,1739475069949,-500.0,0.00013863,2]
[352986134,1739475069958,-1958.68,0.00013863,2]
[352986135,1739475069967,-1221.78,0.00013863,2]
[352986136,1739475069977,-500.0,0.00013863,2]
[352986137,1739475069986,-517.79341037,0.00013863,2]
[352986138,1739475069997,-2458.28,0.00013863,2]
[352986139,1739475070006,-560.19,0.00013863,2]
[352986140,1739475070016,-500.0,0.00013863,2]
[352986141,1739475070026,-647.32,0.00013863,2]
[352986142,1739475070036,-591.03,0.00013863,2]
[352986143,1739475070045,-507.79801311,0.00013863,2]
[352986144,1739475070055,-500.0,0.00013863,2]
[352986145,1739475070067,-500.0,0.00013863,2]
[352986146,1739475070076,-1556.13,0.00013863,2]
[352986147,1739475070086,-1513.41,0.00013863,2]
[352986148,1739475070097,-500.0,0.00013863,2]
[352986149,1739475070107,-500.0,0.00013863,2]
[352986150,1739475070117,-1000.01,0.00013863,2]
[352986151,1739475070128,-500.0,0.00013863,2]
[352986152,1739475070138,-500.0,0.00013863,2]
[352986153,1739475070148,-500.0,0.00013863,2]
[352986154,1739475070158,-500.0,0.00013863,2]
[352986155,1739475070167,-500.0,0.00013863,2]
[352986156,1739475070176,-2028.54,0.00013863,2]
[352986157,1739475070186,-3409.92,0.00013863,2]
[352986158,1739475070196,-930.38,0.00013863,2]
[352986159,1739475070206,-3086.3,0.00013863,2]
[352986160,1739475070216,-500.0,0.00013863,2]
[352986161,1739475070227,-637.57,0.00013863,2]
[352986162,1739475070237,-500.0,0.00013863,2]
[352986163,1739475070248,-500.0,0.00013863,2]
[352986164,1739475070258,-2588.14,0.00013863,2]
[352986165,1739475070269,-1014.99,0.00013863,2]
[352986166,1739475070279,-500.0,0.00013863,2]
[352986167,1739475070288,-372.18395184,0.00013863,2]
[352986168,1739475070298,-3670.51,0.00013863,2]
[352986169,1739475070307,-507.56566948,0.00013863,2]
[352986170,1739475070319,-1003.87,0.00013863,2]
[352986171,1739475070329,-500.0,0.00013863,2]
[352986172,1739475070338,-500.0,0.00013863,2]
[352986173,1739475070348,-2182.31,0.00013863,2]
[352986174,1739475070358,-2545.97,0.00013863,2]
[352986175,1739475070367,-1494.82,0.00013863,2]
[352986176,1739475070377,-500.0,0.00013863,2]
[352986177,1739475070386,-500.0,0.00013863,2]
[352986178,1739475070397,-2931.75,0.00013863,2]
[352986179,1739475070406,-1132.54,0.00013863,2]
[352986180,1739475070416,-2737.88,0.00013863,2]
[352986181,1739475070425,-667.0,0.00013863,2]
[352986182,1739475070435,-500.0,0.00013863,2]
[352986183,1739475070444,-2527.52,0.00013863,2]
[352986184,1739475070454,-1215.71,0.00013863,2]
[352986185,1739475070463,-500.0,0.00013863,2]
[352986186,1739475070473,-500.0,0.00013863,2]
[352986187,1739475070486,-1595.94,0.00013863,2]
[352986188,1739475070496,-500.0,0.00013863,2]
[352986189,1739475070506,-500.0,0.00013863,2]
[352986190,1739475070516,-667.24,0.00013863,2]
[352986191,1739475070527,-500.0,0.00013863,2]
[352986192,1739475070537,-553.96638727,0.00013863,2]
[352986193,1739475070547,-1016.15,0.00013863,2]
[352986194,1739475070560,-500.0,0.00013863,2]
[352986195,1739475070573,-2460.47,0.00013863,2]
[352986196,1739475070582,-1395.37,0.00013863,2]
[352986197,1739475070592,-152.79701797,0.00013863,2]
[352986198,1739475070602,-500.0,0.00013863,2]
[352986199,1739475070611,-500.0,0.00013863,2]
[352986200,1739475070622,-3656.76,0.00013863,2]
[352986201,1739475070632,-500.0,0.00013863,2]
[352986202,1739475070642,-1790.89,0.00013863,2]
[352986203,1739475070652,-1052.8,0.00013863,2]
[352986204,1739475070662,-246.81423994,0.00013863,2]
[352986205,1739475070673,-1242.64,0.00013863,2]
[352986206,1739475070683,-675.2,0.00013863,2]
[352986207,1739475070693,-564.93543102,0.00013863,2]
[352986208,1739475070703,-500.0,0.00013863,2]
[352986209,1739475070714,-500.0,0.00013863,2]
[352986210,1739475070723,-3668.44,0.00013863,2]
[352986211,1739475070733,-1539.64,0.00013863,2]
[352986212,1739475070742,-637.11,0.00013863,2]
[352986213,1739475070753,-360.90886,0.00013863,2]
[352986214,1739475070763,-1108.42,0.00013863,2]
[352986215,1739475070772,-1175.11,0.00013863,2]
[352986216,1739475070783,-360.90887,0.00013863,2]
[352986217,1739475070793,-3058.34,0.00013863,2]
[352986218,1739475070803,-789.536407,0.00013863,2]
[352986219,1739475070814,-500.0,0.00013863,2]
[352986220,1739475070823,-780.58,0.00013863,2]
[352986221,1739475070833,-789.536415,0.00013863,2]
[352986222,1739475070843,-500.0,0.00013863,2]
[352986223,1739475070853,-500.0,0.00013863,2]
[352986224,1739475070864,-610.29,0.00013863,2]
[352986225,1739475070874,-1056.17,0.00013863,2]
[352986226,1739475070884,-500.0,0.00013863,2]
[352986227,1739475071038,-2187.98,0.00013863,2]
[352986228,1739475071048,-500.0,0.00013863,2]
[352986229,1739475071058,-500.0,0.00013863,2]
[352986230,1739475071068,-2040.68,0.00013863,2]
[352986231,1739475071078,-575.34,0.00013863,2]
[352986232,1739475071088,-2159.87,0.00013863,2]
[352986233,1739475071098,-925.06,0.00013863,2]
[352986234,1739475071107,-743.79,0.00013863,2]
[352986235,1739475071117,-190.054601,0.00013863,2]
[352986236,1739475071126,-500.0,0.00013863,2]
[352986237,1739475071136,-500.0,0.00013863,2]
[352986238,1739475071146,-500.0,0.00013863,2]
[352986239,1739475071156,-823.33,0.00013863,2]
[352986240,1739475071165,-190.054605,0.00013863,2]
[352986241,1739475071176,-511.99,0.00013863,2]
[352986242,1739475071186,-2037.06,0.00013863,2]
[352986243,1739475071195,-500.0,0.00013863,2]
[352986244,1739475071205,-1360.94,0.00013863,2]
[352986245,1739475071214,-500.0,0.00013863,2]
[352986246,1739475071224,-500.0,0.00013863,2]
[352986247,1739475071233,-500.0,0.00013863,2]
[352986248,1739475071244,-500.0,0.00013863,2]
[352986249,1739475071254,-802.49,0.00013863,2]
[352986250,1739475071265,-500.0,0.00013863,2]
[352986251,1739475071275,-1155.5,0.00013863,2]
[352986252,1739475071286,-500.0,0.00013863,2]
[352986253,1739475071295,-500.0,0.00013863,2]
[352986254,1739475071305,-500.0,0.00013863,2]
[352986255,1739475071314,-500.0,0.00013863,2]
[352986256,1739475071324,-1376.21,0.00013863,2]
[352986257,1739475071333,-500.0,0.00013863,2]
[352986258,1739475071343,-613.1236299,0.00013863,2]
[352986259,1739475071354,-637.08,0.00013863,2]
[352986260,1739475071364,-500.0,0.00013863,2]
[352986261,1739475071375,-500.0,0.00013863,2]
[352986262,1739475071386,-2436.15,0.00013863,2]
[352986263,1739475071395,-500.0,0.00013863,2]
[352986264,1739475071404,-2924.42,0.00013863,2]
[352986265,1739475071415,-427.12656298,0.00013863,2]
[352986266,1739475071427,-500.0,0.00013863,2]
[352986267,1739475071438,-981.7,0.00013863,2]
[352986268,1739475071448,-500.0,0.00013863,2]
[352986269,1739475071458,-500.0,0.00013863,2]
[352986270,1739475071468,-1534.91,0.00013863,2]
[352986271,1739475071482,-796.87,0.00013863,2]
[352986272,1739475071491,-500.0,0.00013863,2]
[352986273,1739475071500,-500.0,0.00013863,2]
[352986274,1739475071509,-1260.55,0.00013863,2]
[352986275,1739475071519,-500.0,0.00013863,2]
[352986276,1739475071528,-1202.4,0.00013863,2]
[352986277,1739475071539,-2281.4,0.00013863,2]
[352986278,1739475071548,-666.14,0.00013863,2]
[352986279,1739475071558,-778.09,0.00013863,2]
[352986280,1739475071568,-1409.62,0.00013863,2]
[352986281,1739475071577,-1429.87,0.00013863,2]
[352986282,1739475071587,-500.0,0.00013863,2]
[352986283,1739475071596,-1040.07,0.00013863,2]
[352986284,1739475071605,-500.0,0.00013863,2]
[352986285,1739475071615,-1640.83,0.00013863,2]
[352986286,1739475071624,-613.43816393,0.00013863,2]
[352986287,1739475071634,-1104.4,0.00013863,2]
[352986288,1739475071644,-801.15,0.00013863,2]
[352986289,1739475071654,-579.37,0.00013863,2]
[352986290,1739475071664,-2266.57,0.00013863,2]
[352986291,1739475071673,-997.98,0.00013863,2]
[352986292,1739475071683,-2690.65,0.00013863,2]
[352986293,1739475071692,-750.073748,0.00013863,2]
[352986294,1739475071701,-995.51,0.00013863,2]
[352986295,1739475071711,-1200.0,0.00013863,2]
[352986296,1739475071720,-553.83,0.00013863,2]
[352986297,1739475071729,-500.0,0.00013863,2]
[352986298,1739475071739,-1782.01,0.00013863,2]
[352986299,1739475071749,-1239.18,0.00013863,2]
[352986300,1739475071758,-750.07375,0.00013863,2]